Cogmind - Beta 16 @@@ ROGUE MODE // 2026.01.13 @ 17:04:15 Player: Lazz Result: Destroyed by E2-CQM(R) with Subdweller Laser Performance ------------- Evolutions (0) 0 Regions Visited (2) 400 Robots Destroyed (21) 105 Value Destroyed (490) 490 Prototype IDs (12) 240 Alien Tech Used (0) 0 Bonus (0) 0 TOTAL SCORE: 1235 Bonus ------- None Cogmind --------- Core Integrity 0/250 Matter 130/300 Energy 96/100 System Corruption 2% Temperature Cool (6) Movement Walking (130) Location -10/Subcaves Parts ------- > --- POWER (1) -------- Subdweller Power Source > --- PROPULSION (2) --- Cargo Legs > --- UTILITY (2+2) ---- High-capacity Storage Unit Improved Terrain Scanner > --- WEAPON (2) ------- Battle Rifle Battle Cannon > --- INVENTORY (20) --- Subdweller Power Source Subdweller Monowheel Subdweller Monowheel Subdweller Monowheel Subdweller Monowheel Medium Storage Unit Humpback High-capacity Matter Pod (34) Light Assault Rifle Light Assault Rifle Battle Rifle Subdweller Machine Gun Flamer Flamer Scrap Shield Fragment (48) Scrap Shield Fragment (46) Peak State ------------ > --- POWER ------------ Subdweller Power Source > --- PROPULSION ------- Cargo Legs > --- UTILITY ---------- High-capacity Storage Unit Improved Terrain Scanner > --- WEAPON ----------- Subdweller Laser Barrage Gun > --- INVENTORY -------- Subdweller Power Source Subdweller Power Source Subdweller Monowheel Subdweller Monowheel Subdweller Monowheel Medium Storage Unit Humpback High-capacity Matter Pod EM Pulse Gun EM Pulse Gun Light Assault Rifle Light Assault Rifle Battle Rifle Battle Cannon Flamer Shrapnel Trap Scrap Shield Fragment [Rating: 29] Favorites ----------- Power Subdweller Power Source Engine Subdweller Power Source Propulsion Wheel Leg Cargo Legs Wheel Wheel Utility Improved Terrain Scanner Device Improved Terrain Scanner Storage High-capacity Storage Unit Weapon Subdweller Laser Energy Gun Subdweller Laser Ballistic Gun Light Assault Rifle Ballistic Cannon Battle Cannon Special Weapon Flamer Build | -11 -10 -10 ------- Run | Yrd Mat Sub Slots Evolved . | . . . Power . | . . . Propulsion . | . . . Utility . | . . . Weapon . | . . . Parts Attached 20 | 7 2 11 Power 3 | 1 . 2 Engine 3 | 1 . 2 Core . | . . . Reactor . | . . . Propulsion 6 | 2 . 4 Treads . | . . . Leg 1 | . . 1 Wheel 5 | 2 . 3 Hover . | . . . Flight . | . . . Utility 3 | 2 1 . Device 1 | 1 . . Storage 2 | 1 1 . Processor . | . . . Hackware . | . . . Protection . | . . . Artifact . | . . . Weapon 8 | 2 1 5 Energy Gun 3 | 1 1 1 Energy Cannon . | . . . Ballistic Gun 3 | 1 . 2 Ballistic Cannon 1 | . . 1 Launcher . | . . . Special Weapon 1 | . . 1 Impact Weapon . | . . . Slashing Weapon . | . . . Piercing Weapon . | . . . Special Melee Weapon . | . . . Unidentified Prototypes . | . . . Corrupted Parts 1 | . . 1 System Corruption 2 | . . 2 Parts Lost 9 | . . 9 Power 1 | . . 1 Propulsion 3 | . . 3 Utility . | . . . Weapon 5 | . . 5 Highest Loss Streak 4 | . . 4 To Critical Strikes . | . . . Average Backups 8 | 1 5 10 Power . | . . . Propulsion 1 | . 2 2 Utility 2 | . 1 2 Weapon 3 | 1 1 4 Tool/Special . | . . . Unused Backups 14 | . 1 13 Power 1 | . . 1 Propulsion 3 | . . 3 Utility 5 | . 1 4 Weapon 5 | . . 5 Tool/Special . | . . . Average Slot Usage (%) 89 | . 100 86 Engine 11 | . 14 11 Leg 1 | . . 2 Wheel 23 | . 28 22 Device 13 | . 14 13 Storage 13 | . 14 13 Energy Gun 12 | . 14 12 Ballistic Gun 10 | . 14 9 Peak Build Rating 29 | 8 9 29 Average Rating 13 | 5 9 15 On Entrance 5 | . 8 9 Avg Prop Armor Cover (%) . | . . . Naked Turns . | . . . Heaviest Build 53 | 11 47 53 Greatest Support 55 | 20 20 55 Greatest Overweight (x) 4 | . 2 4 Average Overweight (x) 1 | . 1 1 Largest Inventory Capacity 20 | 8 20 20 Average Capacity 18 | 7 19 20 Most Carried 19 | 4 7 19 Average Carried 9 | 1 5 11 Final Capacity 20 | 8 20 20 Final Carried 17 | 4 6 17 Class Distribution -------------------- 58% | Mutant 41% | Scavenger-Mutant Dominant Class ---------------- Mutant | -10/Materials Scavenger-Mutant | -10/Subcaves Resources | -11 -10 -10 ----------- Run | Yrd Mat Sub Matter Collected 505 | 238 39 228 Remotely . | . . . Salvage Created 652 | 158 213 281 Parts 49 | 18 15 16 Haulers Intercepted 1 | . 1 . Recyclers Shooed . | . . . Parts Field Recycled . | . . . Retrieved Matter . | . . . Parts Self-Destructed 3 | . . 3 Prevented . | . . . Parts Restored . | . . . Kills | -11 -10 -10 ------- Run | Yrd Mat Sub Combat Hostiles Destroyed 13 | . 5 8 Guns 9 | . 5 4 Cannons 4 | . . 4 Classes Destroyed 7 | 2 4 1 Tunneler 5 | 5 . . Hauler 1 | . 1 . Recycler 1 | 1 . . Watcher 1 | . 1 . Swarmer 3 | . 3 . Grunt 2 | . 2 . Subdweller 8 | . . 8 Best Kill Streak 6 | 6 5 2 Combat Bots Only 3 | . 3 2 Max Kills in Single Turn 1 | 1 1 1 Gunslinging . | . . . Exploded . | . . . Melee . | . . . Uniques/NPCs Destroyed . | . . . Combat | -11 -10 -10 -------- Run | Yrd Mat Sub Hostile Shots Fired 92 | . 32 60 Missed 28 | . 9 19 Hits 64 | . 23 41 Projectile 64 | . 23 41 AOE 2 | . . 2 Damage Taken 1266 | . 263 1003 Core 266 | . 100 166 Absorbed by Shields . | . . . Regen/Repaired (Parts) 25 | . 25 . Core Remaining (%) 100 | 100 . . Volleys Fired 87 | 16 26 45 Largest 2 | 2 2 2 Hottest 100 | 60 60 100 Shots Fired 159 | 21 52 86 Gun 143 | 21 52 70 Cannon 14 | . . 14 Launcher . | . . . Special 2 | . . 2 Kinetic 96 | 16 26 54 Thermal 25 | . . 25 Explosive . | . . . Electromagnetic 38 | 5 26 7 Robot Hit Streak 21 | 10 13 21 Robot Miss Streak 5 | 2 5 3 Penetration Max . | . . . Secondary Targets 5 | . 3 2 Max Gunslinging Chain 1 | . 1 1 Shots Hit Robots 82 | 13 27 42 Core Hits 36 | 9 12 15 Critical Kills . | . . . Critical Parts Destroyed . | . . . Critical Strikes 2 | 1 1 . Corrupt 2 | 1 1 . Melee Attacks . | . . . Impact . | . . . Slashing . | . . . Piercing . | . . . Sneak Attacks . | . . . Combat Hostiles . | . . . Follow-up Attacks . | . . . Damage Inflicted 1321 | 123 410 788 Guns 960 | 123 303 534 Cannons 254 | . . 254 Explosions 107 | . 107 . Melee . | . . . Ramming . | . . . Kinetic 790 | 82 126 582 Thermal 258 | . 107 151 Explosive . | . . . Electromagnetic 273 | 41 177 55 Impact . | . . . Slashing . | . . . Piercing . | . . . Highest Corruption 2 | . . 2 Average Corruption 2 | . . 2 Corruption Purged . | . . . Corruption Blocked . | . . . Effects 12 | . . 12 Message Errors 1 | . . 1 Matter Fused 3 | . . 3 Heat Flow Errors 2 | . . 2 Energy Discharges 2 | . . 2 Data Loss (minor) 2 | . . 2 Misfires 1 | . . 1 Weapon Failures 1 | . . 1 Overload Shots . | . . . Overflow Damage . | . . . Projectiles . | . . . Explosions . | . . . Melee . | . . . Knockbacks 3 | . . 3 Impact . | . . . Kinetic 3 | . . 3 Secondary . | . . . Self-Inflicted Damage . | . . . Shots . | . . . Rammed . | . . . Targets Rammed . | . . . Kicked . | . . . Crushed . | . . . Highest Temperature 139 | 40 139 128 Average Temperature 39 | 27 53 18 Received Heat Transfer 225 | . 99 126 Siege Activations . | . . . Martial Activations . | . . . Shielding Activations . | . . . Robots Disrupted . | . . . Combat Hostiles . | . . . Robots Corrupted 1 | . 1 . Combat Hostiles . | . . . Parts Fried . | . . . Impact Corruptions . | . . . Robots Melted . | . . . Combat Hostiles . | . . . Parts Melted . | . . . Heat Transferred 325 | . 150 175 Parts Sabotaged . | . . . Parts Stolen . | . . . Parts Stripped . | . . . Power Chain Reactions 1 | . 1 . Alert | -11 -10 -10 ------- Run | Yrd Mat Sub Maximum Alert Level . | . . . Low Security (%) 100 | 100 100 . Level 1 . | . . . Level 2 . | . . . Level 3 . | . . . Level 4 . | . . . Level 5 . | . . . High Security . | . . . Max Security . | . . . Peak Influence 107 | 15 107 . Initial 3 | . 3 . Average 40 | 4 53 . Influence Increases 189 | 30 159 . Destroy 0b10 Robot/C 100 | . 100 . Destroy 0b10 Robot/NC 40 | 30 10 . Destroy Leader 24 | . 24 . Successful Hack 5 | . 5 . Destroy Structure 5 | . 5 . Partial Spotted 15 | . 15 . Influence Decreases 189 | 25 132 32 Entered New Map 18 | . 2 16 Time Decay 171 | 25 130 16 Squads Dispatched 1 | . 1 . Investigation 1 | . 1 . Extermination . | . . . Reinforcement . | . . . Assault . | . . . Garrison . | . . . Intercept . | . . . Searches Triggered . | . . . Construction Impeded . | . . . Haulers Reinforced . | . . . Active Scanning Responses . | . . . Cargo Convoy Interrupts . | . . . Stealth | -11 -10 -10 --------- Run | Yrd Mat Sub Distress Signals . | . . . Communications Jammed . | . . . Distress Signals . | . . . Times Spotted 19 | . 9 10 Peak Tracking Total 3 | . 3 3 Tactical Retreats . | . . . Traps | -11 -10 -10 ------- Run | Yrd Mat Sub Traps Triggered 2 | . . 2 Indirectly . | . . . Trap Hack Attempts . | . . . Triggered . | . . . Disarmed . | . . . Reprogrammed . | . . . Reused . | . . . Traps Extracted . | . . . Installed 1 | . . 1 Triggered . | . . . Most Traps Carried 1 | . . 1 Machines | -11 -10 -10 ---------- Run | Yrd Mat Sub Machines Disabled 1 | . . 1 Max in Single Turn 1 | . . 1 Machines Repaired . | . . . Machines Dismantled . | . . . Machines Sabotaged . | . . . Overloaded Fab Kills . | . . . Hacking | -11 -10 -10 --------- Run | Yrd Mat Sub Machines Accessed 3 | . 2 1 Terminals 1 | . 1 . Fabricators . | . . . Repair Stations 1 | . 1 . Recycling Units . | . . . Scanalyzers . | . . . Garrison Access . | . . . Total Hacks 13 | . 4 9 Successful 11 | . 2 9 Failed 2 | . 2 . Catastrophic . | . . . Database Lockouts . | . . . Manual 3 | . 3 . Terminals 1 | . 1 . Fabricators . | . . . Repair Stations 3 | . 3 . Recycling Units . | . . . Scanalyzers . | . . . Garrison Access . | . . . Terminal Hacks 10 | . 1 9 Record 8 | . . 8 Zone Layout 1 | . 1 . Proto ID Catalog 1 | . . 1 Fabricator Hacks . | . . . Repair Station Hacks . | . . . Recycling Unit Hacks . | . . . Scanalyzer . | . . . Garrison Access Hacks . | . . . Unauthorized Hacks 1 | . 1 . Terminals . | . . . Fabricators . | . . . Repair Stations 1 | . 1 . Patch 1 | . 1 . Recycling Units . | . . . Scanalyzers . | . . . Garrison Access . | . . . Data Cores Recovered . | . . . Used . | . . . Hacking Detections . | . . . Full Trace Events . | . . . Feedback Events . | . . . Feedback Blocked . | . . . Robot Schematics Acquired . | . . . Robots Built . | . . . Authchips . | . . . Time . | . . . Total Robot Build Rating . | . . . Part Schematics Acquired . | . . . Parts Built . | . . . Authchips . | . . . Time . | . . . Total Part Build Rating . | . . . Part Studies Acquired . | . . . Parts Repaired . | . . . Time . | . . . Parts Recycled . | . . . Recycled Matter . | . . . Retrieved Matter . | . . . Retrieved Components . | . . . Parts Scanalyzed . | . . . Part Schematics Acquired . | . . . Parts Damaged . | . . . Bothacking | -11 -10 -10 ------------ Run | Yrd Mat Sub Used RIF Installer . | . . . Robots Hacked . | . . . Non-combat . | . . . Combat . | . . . Robot Hacks Applied . | . . . Relay Couplers Released . | . . . Fabnet Peak Effective % . | . . . Robots Rewired . | . . . Allies Hacked . | . . . Hacks Repelled . | . . . Allies | -11 -10 -10 -------- Run | Yrd Mat Sub Total Allies . | . . . Largest Group . | . . . Highest-Rated Group . | . . . Highest-Rated Ally . | . . . Total Orders . | . . . Ally Attacks . | . . . Total Damage . | . . . Kills . | . . . Allies Corrupted . | . . . Allies Melted . | . . . Intel | -11 -10 -10 ------- Run | Yrd Mat Sub Active Infowar (turns) 1203 | 11 265 927 Terrain 1203 | 11 265 927 Robot Analysis Total . | . . . Derelict Logs Recovered 1 | . . 1 Drone Launches . | . . . Drone Recoveries . | . . . Exploration | -11 -10 -10 ------------- Run | Yrd Mat Sub Turns Passed 1283 | 91 265 927 Spaces Moved 885 | 55 165 665 Core 1 | 1 . . Treads . | . . . Legs 88 | . . 88 Wheels 796 | 54 165 577 Hover . | . . . Flight . | . . . Fastest Speed 50 | 50 80 107 Average Speed 109 | 79 107 112 Slowest Speed 140 | 80 110 140 Overloaded Moves . | . . . Propulsion Burnouts . | . . . Robots Hopped . | . . . Potential Cave-ins . | . . . Cave-ins Triggered . | . . . Exploration Rate (%) 27 | 4 28 50 Regions Visited 2 Branch Regions 1 Pre-discovered Areas 1 | . . 1 Known Exits Taken . | . . . Unknown Exits Taken 2 | 1 1 . Scrap Searched . | . . . Spaces Dug . | . . . Terrain Destroyed 4 | . 4 . Melee . | . . . Projectile . | . . . AOE 4 | . 4 . Terrain Rammed . | . . . Walls Destroyed . | . . . Machines Disabled . | . . . Actions | -11 -10 -10 --------- Run | Yrd Mat Sub Total 1052 | 81 206 765 Wait 22 | . 8 14 Move 883 | 54 164 665 Hop . | . . . Pick Up 27 | 3 4 20 Fast Attach 10 | 7 . 3 Attach 9 | . 1 8 Detach 3 | 1 . 2 Swap 3 | . 1 2 Drop 7 | . 2 5 Fire 87 | 16 26 45 Melee . | . . . Ram . | . . . Kick . | . . . Crush . | . . . Escape Stasis . | . . . Rewire . | . . . Trap 1 | . . 1 Miscellaneous . | . . . Route ------- -11/Scrapyard -10/Materials (discovered 2 exits: [*Min] / *Sub) -10/Subcaves History --------- Turn | Location | Event 18 | -11/Scrapyard | Discovered new exit (range 16) 92 | -11/Scrapyard | Entered Materials 226 | -10/Materials | Discovered new exit (range 7) 302 | -10/Materials | Build established: Mutant 342 | -10/Materials | Discovered new exit (range 6) 357 | -10/Materials | Entered Subcaves 367 | -10/Subcaves | A swath of the cavern ceiling suddenly collapsed 463 | -10/Subcaves | Ambushed by Subdwellers from Twisted Machinery 470 | -10/Subcaves | Core integrity fell below 50% 615 | -10/Subcaves | Lost 3 parts (2n1w) 792 | -10/Subcaves | Shifting Twisted Machinery released Barrage Gun 918 | -10/Subcaves | Shifting Twisted Machinery released Shrapnel Trap 1002 | -10/Subcaves | Shifting Twisted Machinery released Battle Cannon 1005 | -10/Subcaves | Shifting Twisted Machinery released Flamer 1091 | -10/Subcaves | Visited 4L-MR0's lab 1104 | -10/Subcaves | Found Cargo Legs 1105 | -10/Subcaves | Attached Cargo Legs, gained temporary slots: Utility x2 1179 | -10/Subcaves | Core integrity fell below 20% 1221 | -10/Subcaves | Lost 4 parts (4w) 1284 | -10/Subcaves | Destroyed by E2-CQM(R) with Subdweller Laser Last Messages --------------- 01213_ Acquired 2 matter. 01214_ System corrupted: Heat flow error (+155). 01216_ Acquired Sub. Monowheel. 01217_ Subatomizers dissect the Sub. Machine Gun. 01217_ Dropped Wheel. 01217_ Dropped Broken Sub. Power Source. 01218_ Sub. Power Source shoots sparks and powers down. 01220_ Acquired Battle Rifle. 01223_ Acquired Scrap Shield Fragment. 01224_ Acquired 19 matter. 01226_ Acquired Flamer. 01229_ Acquired Sub. Machine Gun. 01237_ Subatomizers dissect the Corrupted Sub. Power Source. 01242_ N4-RJQ(R) destroyed. 01248_ V0-9XV(R) destroyed. 01251_ Subatomizers dissect the Broken Sub. Power Source. Map ----- +----------------------------------------------------+ | ?????????????????#???????????????????????????????? | | ?????????#???????????????????????????????????????? | | ????????????????####??????#??????????????????????? | | ???????????????## ""##########???????????????????? | | ????????#??????#""" ##"" ##??#???????????????? | | ???????????????#""" # ###??????#????????????? | | ????????????##?# "" + "X"""#???????????????????? | | ???????????????#""" "#"""""""#?#?????????????????? | | ???????????#???#" " ##########??#????????????????? | | ??????????????##""" ##??????#?#??????????????????? | | ??#??????##????#""" ######??????????????????????? | | ??????#??##??#?##"" # #??????????????????????? | | ?????????##?????#" ##?????????????????#????? | | ???????????#???### ## <#??????????#???????????? | | #???#????##????#######< <###????######??????????? | | ?#??#?#???###??# ### < ###??# ###????????? | | ?????????## #### ##?# ?????????? | | ???#??#?#?# ##### ### #??????????? | | ?"???###### ### ## ####??????## | | ??"??# ## ## # ### # # # | | ??"?## | | ###?# | | ????# ### R ## ###?? | | ?#??## *= #?## ###???##### | | ??#??##! ##??## ######## ##???## # | | #######* ##????# @ #??????# ###?# ## | | # #?#???## ###### ##????## ###### # | | %&% #?????#####????# #????# " | | ""^ % #??????????????## #???## | | ""#" # #??????????????# #???# # # ####" | | ######## ###?????????????# #???###########??## | | #?#??#?####?????#?????????######???????#?????????? | | ?????????????#???#???????????????????????????????? | | ??????#??????#?????????????#?????????????????????? | | ???#??????????????????????#??#???????????????????? | | ??????????????????????????????????????#??????????? | | ?#"???????????????????????????##?????????????????? | | ?????????#??#???????????#????????????????#????#??? | | ?????#???????????????????????????????????????????? | | ?????#???????????????????????????????????????????# | | ?????????????????????????????????????????#?????#?? | | ??????#???????????????????????#?????????????????? | | ?????????????????????????????????????????????????? | | ?????????????????????????????????????????????????? | | ?????????????????????????????????????????????????? | | ?????????????????????????????????????????????????? | | ?????????????????????????????????????????????????? | | ?????????????????????????????????????????????????? | | ?????????????????????????????????????????????????? | | ?????????????????????????????????????????????????? | +----------------------------------------------------+ Best States ------------- Heat Dissipation 25 Energy Generation 15 Energy Capacity 200 Matter Stores 300 Matter Capacity 300 Sight Range 16 Terrain Scan Range 16 Terrain Scan Density 10 Evasion (%) 55 Item Schematics ----------------- None Robot Schematics ------------------ None Fabricated ------------ Nothing Repaired ---------- Nothing Studied --------- None Alien Tech Used ----------------- None Achievements -------------- None Challenges ------------ None Game ------ Seed AlertTowerPlating Manual? 0 Play Time 00:13:33 Cumulative 125.0 hours Start 2026.01.13 @ 16:51:57 End 2026.01.13 @ 17:04:15 Sessions 1 Manual Loads 0 Difficulty Rogue Special Mode None Game No. 178 Rogue 178 Adventurer 0 Explorer 0 Win Type - Total 1 Types 1/0/0/0/0/0/0/0/0/0 Lore% 62 Gallery% 57 Achievement% 42 Wizard Run 0 Options --------- Layout 2 ASCII 0 Keyboard 0 Movement Mouse Keybinds 0 Fullscreen 1 Font 16/SmallcapsGlow Map View 50x44 Zoom Use 0% Tactical HUD 1 Map Filters NONE Filters NONE Steam SD RUN: afbe90f4-8c76-4628-9fff-91f5c58c6807